[Event "SELL Games"]
[Site "Tartu, Estonia"]
[Date "2023.05.20"]
[Round "8.4"]
[White "Simkunaite, Gabija"]
[Black "Obolonin, Filipp"]
[Result "1/2-1/2"]
[TimeControl "15min + 10sec per move each"]
[WhiteTitle "WFM"]
[WhiteFideId "12808253"]
[BlackFideId "4505549"]
[WhiteElo "1964"]
[BlackElo "2017"]

1. e4 {[%clk 00:15:16]} {[%emt 00:00:03]} c6 {[%clk 00:15:20]} 2. d4 {[%clk
00:15:20]} {[%emt 00:00:06]} d5 {[%clk 00:15:29]} 3. exd5 {[%clk 00:15:28]}
{[%emt 00:00:02]} cxd5 {[%clk 00:15:38]} 4. Bd3 {[%clk 00:15:35]} {[%emt
00:00:02]} Nf6 {[%clk 00:15:47]} {[%emt 00:00:01]} 5. c3 {[%clk 00:15:41]}
{[%emt 00:00:04]} g6 {[%clk 00:15:53]} {[%emt 00:00:04]} 6. Bf4 {[%clk
00:15:42]} {[%emt 00:00:08]} Bg7 {[%clk 00:16:02]} {[%emt 00:00:02]} 7. Ne2
{[%clk 00:15:47]} {[%emt 00:00:05]} O-O {[%clk 00:16:09]} {[%emt 00:00:03]} 8.
O-O {[%clk 00:15:45]} {[%emt 00:00:12]} b6 {[%clk 00:16:18]} {[%emt 00:00:02]}
9. Nd2 {[%clk 00:15:31]} {[%emt 00:00:23]} Ba6 {[%clk 00:16:22]} {[%emt
00:00:06]} 10. Nf3 {[%clk 00:14:37]} {[%emt 00:01:04]} Bxd3 {[%clk 00:16:29]}
{[%emt 00:00:03]} 11. Qxd3 {[%clk 00:14:44]} {[%emt 00:00:02]} Nbd7 {[%clk
00:16:37]} {[%emt 00:00:03]} 12. Ne5 {[%clk 00:14:18]} {[%emt 00:00:35]} Nh5
{[%clk 00:16:41]} {[%emt 00:00:06]} 13. Nc6 {[%clk 00:13:52]} {[%emt 00:00:36]}
Qe8 {[%clk 00:16:04]} {[%emt 00:00:47]} 14. Bg5 {[%clk 00:13:17]} {[%emt
00:00:45]} Ndf6 {[%clk 00:16:06]} {[%emt 00:00:10]} 15. Ne5 {[%clk 00:13:12]}
{[%emt 00:00:14]} Nd7 {[%clk 00:15:30]} {[%emt 00:00:47]} 16. Nc6 {[%clk
00:13:02]} {[%emt 00:00:20]} Ndf6 {[%clk 00:15:39]} {[%emt 00:00:01]} 17. Ne5
{[%clk 00:13:06]} {[%emt 00:00:06]} Nd7 {[%clk 00:15:48]} {[%emt 00:00:01]} 18.
Nc6 {[%clk 00:13:14]} Ndf6 {[%clk 00:15:58]} 1/2-1/2

[Event "SELL Games"]
[Site "Tartu, Estonia"]
[Date "2023.05.20"]
[Round "8.5"]
[White "Laurusas, Tomas"]
[Black "Sibajeva, Marija"]
[Result "1-0"]
[TimeControl "15min + 10sec per move each"]
[WhiteTitle "GM"]
[BlackTitle "WFM"]
[WhiteFideId "12803731"]
[BlackFideId "12807583"]
[WhiteElo "2504"]
[BlackElo "1953"]

1. c4 {[%clk 00:15:19]} c5 {[%clk 00:15:19]} 2. Nf3 {[%clk 00:15:28]} {[%emt
00:00:02]} Nc6 {[%clk 00:15:27]} {[%emt 00:00:02]} 3. d4 {[%clk 00:15:37]} cxd4
{[%clk 00:15:32]} {[%emt 00:00:06]} 4. Nxd4 {[%clk 00:15:45]} {[%emt 00:00:01]}
Nf6 {[%clk 00:15:28]} {[%emt 00:00:13]} 5. Nc3 {[%clk 00:15:54]} {[%emt
00:00:01]} g6 {[%clk 00:15:29]} {[%emt 00:00:10]} 6. e4 {[%clk 00:16:02]}
{[%emt 00:00:02]} Bg7 {[%clk 00:15:34]} {[%emt 00:00:05]} 7. Nb3 {[%clk
00:15:46]} {[%emt 00:00:26]} d6 {[%clk 00:15:39]} {[%emt 00:00:05]} 8. Be2
{[%clk 00:15:54]} {[%emt 00:00:02]} O-O {[%clk 00:15:46]} {[%emt 00:00:03]} 9.
Be3 {[%clk 00:16:02]} {[%emt 00:00:02]} Be6 {[%clk 00:15:20]} {[%emt 00:00:36]}
10. h3 {[%clk 00:15:55]} {[%emt 00:00:18]} Rc8 {[%clk 00:15:04]} {[%emt
00:00:26]} 11. Nd2 {[%clk 00:15:56]} {[%emt 00:00:08]} Nd7 {[%clk 00:14:48]}
{[%emt 00:00:26]} 12. Rc1 {[%clk 00:16:00]} {[%emt 00:00:06]} Nce5 {[%clk
00:13:29]} {[%emt 00:01:28]} 13. b3 {[%clk 00:16:08]} {[%emt 00:00:03]} Qa5
{[%clk 00:13:12]} {[%emt 00:00:27]} 14. Qc2 {[%clk 00:16:16]} {[%emt 00:00:01]}
Nc6 {[%clk 00:12:11]} {[%emt 00:01:12]} 15. O-O {[%clk 00:15:48]} {[%emt
00:00:37]} Nd4 {[%clk 00:11:57]} {[%emt 00:00:23]} 16. Qd1 {[%clk 00:15:25]}
{[%emt 00:00:34]} Nxe2+ {[%clk 00:11:41]} {[%emt 00:00:27]} 17. Nxe2 {[%clk
00:15:33]} {[%emt 00:00:01]} f5 {[%clk 00:08:43]} {[%emt 00:03:08]} 18. exf5
{[%clk 00:15:05]} {[%emt 00:00:38]} Bxf5 {[%clk 00:08:38]} {[%emt 00:00:16]} 19.
Nd4 {[%clk 00:15:05]} {[%emt 00:00:09]} Bd3 {[%clk 00:07:20]} {[%emt 00:01:28]}
20. Re1 {[%clk 00:15:06]} {[%emt 00:00:09]} Nc5 {[%clk 00:07:07]} {[%emt
00:00:22]} 21. N2f3 {[%clk 00:14:39]} {[%emt 00:00:38]} e5 {[%clk 00:05:47]}
{[%emt 00:01:30]} 22. Nb5 {[%clk 00:14:42]} {[%emt 00:00:07]} e4 {[%clk
00:04:58]} {[%emt 00:00:59]} 23. Nfd4 {[%clk 00:13:52]} {[%emt 00:01:00]} d5
{[%clk 00:04:06]} {[%emt 00:01:02]} 24. a3 {[%clk 00:13:43]} {[%emt 00:00:19]}
Qa6 {[%clk 00:03:20]} {[%emt 00:00:54]} 25. b4 {[%clk 00:12:37]} {[%emt
00:01:18]} Bxc4 {[%clk 00:03:08]} {[%emt 00:00:22]} 26. Rxc4 {[%clk 00:11:58]}
{[%emt 00:00:50]} dxc4 {[%clk 00:03:12]} {[%emt 00:00:05]} 27. bxc5 {[%clk
00:12:06]} {[%emt 00:00:02]} Rxc5 {[%clk 00:03:07]} {[%emt 00:00:15]} 28. a4
{[%clk 00:12:15]} {[%emt 00:00:02]} Rd5 {[%clk 00:02:58]} {[%emt 00:00:19]} 29.
Qc2 {[%clk 00:12:20]} {[%emt 00:00:04]} Qa5 {[%emt 00:01:13]} 30. Rd1 {[%clk
00:12:03]} {[%emt 00:00:14]} Rfd8 {[%clk 00:01:54]} {[%emt 00:00:24]} 31. Qxc4
{[%clk 00:12:06]} {[%emt 00:00:07]} Kh8 {[%clk 00:01:56]} {[%emt 00:00:08]} 32.
Rf1 {[%clk 00:10:57]} {[%emt 00:01:19]} R8d7 {[%clk 00:01:28]} {[%emt
00:00:38]} 33. Ne6 {[%clk 00:10:44]} {[%emt 00:00:23]} Bf6 {[%clk 00:00:44]}
{[%emt 00:00:54]} 34. Qc8+ {[%clk 00:10:42]} {[%emt 00:00:13]} Bd8 {[%clk
00:00:49]} {[%emt 00:00:04]} 1-0

[Event "SELL Games"]
[Site "Tartu, Estonia"]
[Date "2023.05.20"]
[Round "8.6"]
[White "Vanagaite, Giedre"]
[Black "Mikelsons, Mikelis-Emils"]
[Result "1-0"]
[TimeControl "15min + 10sec per move each"]
[WhiteTitle "WFM"]
[WhiteFideId "12800546"]
[BlackFideId "11607475"]
[WhiteElo "1995"]
[BlackElo "1877"]

1. d4 {[%clk 00:15:19]} {[%emt 00:00:01]} d5 {[%clk 00:15:19]} {[%emt
00:00:02]} 2. Nf3 {[%clk 00:15:28]} Nf6 {[%clk 00:15:27]} {[%emt 00:00:01]} 3.
c4 {[%clk 00:15:37]} {[%emt 00:00:01]} e6 {[%clk 00:15:36]} {[%emt 00:00:01]} 4.
Nc3 {[%clk 00:15:46]} Bb4 {[%clk 00:15:45]} {[%emt 00:00:02]} 5. Bg5 {[%clk
00:15:54]} {[%emt 00:00:02]} h6 {[%clk 00:15:53]} {[%emt 00:00:01]} 6. Bh4
{[%clk 00:16:03]} g5 {[%clk 00:16:02]} {[%emt 00:00:01]} 7. Bg3 {[%clk
00:16:12]} Ne4 {[%clk 00:16:09]} {[%emt 00:00:04]} 8. Qc2 {[%clk 00:16:20]}
{[%emt 00:00:02]} Nc6 {[%clk 00:16:17]} {[%emt 00:00:02]} 9. e3 {[%clk
00:16:15]} {[%emt 00:00:15]} h5 {[%clk 00:16:25]} {[%emt 00:00:02]} 10. h4
{[%clk 00:15:24]} {[%emt 00:01:01]} Nxg3 {[%clk 00:16:32]} {[%emt 00:00:03]} 11.
fxg3 {[%clk 00:15:33]} {[%emt 00:00:01]} Qd6 {[%clk 00:16:40]} {[%emt
00:00:02]} 12. Nxg5 {[%clk 00:15:04]} {[%emt 00:00:39]} Qxg3+ {[%clk 00:13:20]}
{[%emt 00:03:30]} 13. Qf2 {[%clk 00:15:13]} Qxf2+ {[%clk 00:13:28]} {[%emt
00:00:03]} 14. Kxf2 {[%clk 00:15:22]} {[%emt 00:00:01]} Bxc3 {[%clk 00:12:50]}
{[%emt 00:00:48]} 15. bxc3 {[%clk 00:15:30]} f6 {[%clk 00:12:46]} {[%emt
00:00:14]} 16. Nf3 {[%clk 00:15:37]} {[%emt 00:00:03]} Bd7 {[%clk 00:12:53]}
{[%emt 00:00:04]} 17. Be2 {[%clk 00:13:59]} {[%emt 00:01:48]} dxc4 {[%clk
00:12:42]} {[%emt 00:00:21]} 18. Bxc4 {[%clk 00:14:08]} {[%emt 00:00:01]} O-O-O
{[%clk 00:12:49]} {[%emt 00:00:03]} 19. Rab1 {[%clk 00:13:49]} {[%emt
00:00:29]} Na5 {[%clk 00:10:57]} {[%emt 00:02:02]} 20. Bd3 {[%clk 00:11:09]}
{[%emt 00:02:50]} Bc6 {[%clk 00:11:03]} {[%emt 00:00:04]} 21. e4 {[%clk
00:11:15]} {[%emt 00:00:05]} Rhg8 {[%clk 00:10:44]} {[%emt 00:00:29]} 22. g3
{[%clk 00:09:36]} {[%emt 00:01:49]} Rg4 {[%clk 00:08:59]} {[%emt 00:01:54]} 23.
Rbe1 {[%clk 00:09:44]} {[%emt 00:00:01]} Rdg8 {[%emt 00:00:12]} 24. Rhg1 {[%emt
00:00:01]} R4g7 {[%clk 00:06:26]} {[%emt 00:02:40]} 25. Re3 {[%clk 00:09:51]}
{[%emt 00:00:13]} Rf8 {[%clk 00:04:06]} {[%emt 00:02:30]} 26. Kg2 {[%clk
00:07:39]} {[%emt 00:02:22]} a6 {[%clk 00:03:08]} {[%emt 00:01:08]} 27. Kh2
{[%clk 00:07:31]} {[%emt 00:00:18]} b5 {[%clk 00:03:10]} {[%emt 00:00:08]} 28.
Nd2 {[%clk 00:06:48]} {[%emt 00:00:52]} Nb7 {[%clk 00:02:14]} {[%emt 00:01:07]}
29. Rf1 {[%clk 00:06:34]} {[%emt 00:00:24]} Nd6 {[%clk 00:01:46]} {[%emt
00:00:37]} 30. e5 {[%clk 00:06:32]} {[%emt 00:00:12]} Ne8 {[%clk 00:01:35]}
{[%emt 00:00:21]} 31. exf6 {[%clk 00:06:06]} {[%emt 00:00:35]} Nxf6 {[%clk
00:01:44]} {[%emt 00:00:01]} 32. Rxe6 {[%clk 00:05:07]} {[%emt 00:01:10]} Ng4+
{[%clk 00:01:31]} {[%emt 00:00:23]} 33. Kg1 {[%clk 00:05:16]} Rxf1+ {[%clk
00:01:07]} {[%emt 00:00:34]} 34. Nxf1 {[%clk 00:04:47]} {[%emt 00:00:40]} Kb7
{[%clk 00:01:14]} {[%emt 00:00:03]} 35. Be4 {[%clk 00:04:07]} {[%emt 00:00:50]}
Bxe4 {[%clk 00:01:02]} {[%emt 00:00:22]} 36. Rxe4 {[%clk 00:04:16]} {[%emt
00:00:01]} Kc6 {[%clk 00:01:11]} 37. Re6+ {[%clk 00:04:20]} {[%emt 00:00:06]}
Kd5 {[%clk 00:01:06]} {[%emt 00:00:15]} 38. Rxa6 {[%clk 00:04:20]} {[%emt
00:00:10]} c6 {[%clk 00:01:15]} {[%emt 00:00:01]} 39. a4 {[%clk 00:04:07]}
{[%emt 00:00:23]} Rb7 {[%clk 00:00:46]} {[%emt 00:00:39]} 40. axb5 {[%clk
00:01:28]} {[%emt 00:02:49]} Rxb5 {[%clk 00:00:54]} {[%emt 00:00:02]} 41. Ra1
{[%clk 00:01:23]} {[%emt 00:00:15]} Kc4 {[%clk 00:00:16]} {[%emt 00:00:48]} 42.
Nh2 {[%clk 00:00:38]} {[%emt 00:00:55]} Nxh2 {[%clk 00:00:21]} {[%emt
00:00:05]} 43. Kxh2 {[%clk 00:00:47]} {[%emt 00:00:01]} Kxc3 {[%clk 00:00:20]}
{[%emt 00:00:11]} 44. Rc1+ {[%clk 00:00:52]} {[%emt 00:00:05]} Kxd4 {[%clk
00:00:28]} {[%emt 00:00:02]} 45. Rxc6 {[%clk 00:01:01]} {[%emt 00:00:01]} Ke4
{[%clk 00:00:19]} {[%emt 00:00:19]} 46. Rf6 {[%clk 00:01:08]} {[%emt 00:00:03]}
Rb2+ {[%clk 00:00:18]} {[%emt 00:00:11]} 47. Kh3 {[%clk 00:01:17]} {[%emt
00:00:01]} Rb5 {[%clk 00:00:24]} {[%emt 00:00:04]} 48. Rf4+ {[%clk 00:01:19]}
{[%emt 00:00:08]} Ke5 {[%clk 00:00:30]} {[%emt 00:00:04]} 49. Rf8 {[%clk
00:01:23]} {[%emt 00:00:06]} Ke4 {[%clk 00:00:31]} {[%emt 00:00:09]} 50. Rg8
{[%clk 00:01:15]} {[%emt 00:00:18]} Ra5 {[%clk 00:00:22]} {[%emt 00:00:18]} 51.
Rf8 {[%clk 00:00:36]} {[%emt 00:00:50]} Ra2 {[%clk 00:00:19]} {[%emt 00:00:13]}
52. Re8+ {[%clk 00:00:38]} {[%emt 00:00:09]} Kf5 {[%clk 00:00:25]} {[%emt
00:00:04]} 53. Rh8 {[%clk 00:00:39]} {[%emt 00:00:08]} Kg6 {[%clk 00:00:31]}
{[%emt 00:00:05]} 54. Rg8+ {[%clk 00:00:41]} {[%emt 00:00:08]} Kh6 {[%clk
00:00:38]} {[%emt 00:00:02]} 55. Rg5 {[%clk 00:00:50]} {[%emt 00:00:01]} Rb2
{[%clk 00:00:44]} {[%emt 00:00:04]} 56. Rc5 {[%clk 00:00:51]} {[%emt 00:00:09]}
Ra2 {[%clk 00:00:42]} {[%emt 00:00:11]} 57. Rc6+ {[%clk 00:01:00]} Kg7 {[%clk
00:00:48]} {[%emt 00:00:04]} 58. Rb6 {[%clk 00:01:02]} {[%emt 00:00:09]} Rc2
{[%clk 00:00:55]} {[%emt 00:00:03]} 59. Rb3 {[%clk 00:00:34]} {[%emt 00:00:38]}
Kg6 {[%clk 00:00:57]} {[%emt 00:00:07]} 60. Rf3 {[%clk 00:00:36]} {[%emt
00:00:08]} Ra2 {[%clk 00:01:01]} {[%emt 00:00:06]} 61. Rf1 {[%clk 00:00:39]}
{[%emt 00:00:07]} Rb2 {[%clk 00:01:03]} {[%emt 00:00:08]} 62. Rg1 {[%clk
00:00:48]} {[%emt 00:00:01]} Ra2 {[%clk 00:01:12]} {[%emt 00:00:02]} 63. Rg2
{[%clk 00:00:54]} {[%emt 00:00:03]} Ra3 {[%clk 00:01:20]} {[%emt 00:00:03]} 64.
Kh2 {[%clk 00:00:58]} {[%emt 00:00:06]} Ra1 {[%clk 00:01:16]} {[%emt 00:00:13]}
65. Rf2 {[%clk 00:01:05]} {[%emt 00:00:03]} Rb1 {[%clk 00:01:16]} {[%emt
00:00:09]} 66. Kg2 {[%clk 00:01:14]} {[%emt 00:00:03]} Rb3 {[%clk 00:01:24]}
{[%emt 00:00:02]} 67. Rc2 {[%clk 00:01:15]} {[%emt 00:00:09]} Ra3 {[%clk
00:01:06]} {[%emt 00:00:28]} 68. Kf2 {[%clk 00:01:23]} {[%emt 00:00:02]} Rb3
{[%clk 00:01:07]} {[%emt 00:00:09]} 69. Rc6+ {[%clk 00:01:32]} {[%emt
00:00:01]} Kf5 {[%clk 00:00:22]} {[%emt 00:00:55]} 70. Rh6 {[%clk 00:01:15]}
{[%emt 00:00:27]} Rb2+ {[%clk 00:00:28]} {[%emt 00:00:04]} 71. Kf3 {[%clk
00:01:23]} {[%emt 00:00:02]} Rb3+ {[%clk 00:00:37]} {[%emt 00:00:01]} 72. Kg2
{[%clk 00:01:28]} {[%emt 00:00:05]} Kg4 {[%clk 00:00:11]} {[%emt 00:00:36]} 73.
Rg6+ {[%clk 00:01:36]} {[%emt 00:00:02]} Kf5 {[%clk 00:00:19]} {[%emt
00:00:02]} 74. Rg5+ {[%clk 00:01:45]} Ke4 {[%clk 00:00:26]} {[%emt 00:00:04]}
75. Rxh5 {[%clk 00:01:54]} {[%emt 00:00:02]} Rb2+ {[%clk 00:00:28]} {[%emt
00:00:07]} 76. Kh3 {[%clk 00:02:03]} Rb3 {[%clk 00:00:27]} {[%emt 00:00:12]} 77.
Kg4 {[%clk 00:02:04]} {[%emt 00:00:08]} Rc3 {[%clk 00:00:29]} {[%emt 00:00:08]}
78. Rh8 {[%clk 00:02:11]} {[%emt 00:00:03]} Kd5 {[%clk 00:15:10]} {[%emt
00:00:14]} 1-0

[Event "SELL Games"]
[Site "Tartu, Estonia"]
[Date "2023.05.20"]
[Round "8.7"]
[White "Maciuityte, Greta"]
[Black "Bekasovs, Rihards"]
[Result "0-1"]
[TimeControl "15min + 10sec per move each"]
[WhiteFideId "12806765"]
[BlackFideId "11606029"]
[WhiteElo "1715"]
[BlackElo "2107"]

1. e4 {[%clk 00:15:18]} {[%emt 00:00:02]} c6 {[%clk 00:15:19]} {[%emt
00:00:01]} 2. d4 {[%clk 00:15:26]} {[%emt 00:00:02]} d5 {[%clk 00:15:28]}
{[%emt 00:00:01]} 3. e5 {[%clk 00:15:35]} {[%emt 00:00:02]} Bf5 {[%clk
00:15:36]} {[%emt 00:00:01]} 4. c3 {[%clk 00:15:43]} {[%emt 00:00:02]} e6
{[%clk 00:15:44]} {[%emt 00:00:02]} 5. Nf3 {[%clk 00:15:52]} {[%emt 00:00:01]}
h6 {[%clk 00:15:51]} {[%emt 00:00:02]} 6. Bd3 {[%clk 00:16:00]} {[%emt
00:00:01]} Bxd3 {[%clk 00:15:53]} {[%emt 00:00:09]} 7. Qxd3 {[%clk 00:16:09]}
{[%emt 00:00:01]} Qa5 {[%clk 00:15:47]} {[%emt 00:00:16]} 8. O-O {[%clk
00:16:08]} {[%emt 00:00:11]} Qa6 {[%clk 00:15:56]} {[%emt 00:00:02]} 9. Qc2
{[%clk 00:15:56]} {[%emt 00:00:21]} Nd7 {[%clk 00:15:45]} {[%emt 00:00:21]} 10.
Nbd2 {[%clk 00:16:02]} {[%emt 00:00:04]} Ne7 {[%clk 00:15:42]} {[%emt
00:00:13]} 11. Nh4 {[%clk 00:15:48]} {[%emt 00:00:24]} g5 {[%clk 00:14:14]}
{[%emt 00:01:38]} 12. Nhf3 {[%clk 00:15:57]} {[%emt 00:00:01]} Bg7 {[%clk
00:14:23]} {[%emt 00:00:02]} 13. h3 {[%clk 00:15:47]} {[%emt 00:00:19]} c5
{[%clk 00:14:22]} {[%emt 00:00:12]} 14. Nb3 {[%clk 00:15:43]} {[%emt 00:00:13]}
Rc8 {[%clk 00:13:57]} {[%emt 00:00:35]} 15. Be3 {[%clk 00:14:57]} {[%emt
00:00:56]} Nf5 {[%clk 00:12:38]} {[%emt 00:01:28]} 16. Rfe1 {[%clk 00:14:32]}
{[%emt 00:00:35]} cxd4 {[%clk 00:12:33]} {[%emt 00:00:15]} 17. Bxd4 {[%clk
00:14:37]} {[%emt 00:00:04]} Nxd4 {[%clk 00:12:20]} {[%emt 00:00:23]} 18. Nbxd4
{[%clk 00:14:45]} {[%emt 00:00:01]} O-O {[%clk 00:12:05]} {[%emt 00:00:25]} 19.
Qd2 {[%clk 00:14:22]} {[%emt 00:00:34]} Qa5 {[%clk 00:10:47]} {[%emt 00:01:28]}
20. Qe3 {[%clk 00:13:44]} {[%emt 00:00:48]} a6 {[%clk 00:10:40]} {[%emt
00:00:17]} 21. Re2 {[%clk 00:12:12]} {[%emt 00:01:41]} b5 {[%clk 00:10:43]}
{[%emt 00:00:07]} 22. a3 {[%clk 00:12:04]} {[%emt 00:00:19]} Qb6 {[%clk
00:10:29]} {[%emt 00:00:24]} 23. Rae1 {[%clk 00:11:21]} {[%emt 00:00:53]} a5
{[%clk 00:10:32]} {[%emt 00:00:07]} 24. b4 {[%clk 00:10:11]} {[%emt 00:01:20]}
Rb8 {[%clk 00:09:43]} {[%emt 00:00:58]} 25. Qd3 {[%clk 00:09:44]} {[%emt
00:00:37]} Rfc8 {[%clk 00:09:39]} {[%emt 00:00:15]} 26. Rb1 {[%clk 00:09:27]}
{[%emt 00:00:27]} a4 {[%clk 00:04:53]} {[%emt 00:04:56]} 27. Rc1 {[%clk
00:09:08]} {[%emt 00:00:29]} Qa6 {[%clk 00:03:50]} {[%emt 00:01:13]} 28. Ree1
{[%clk 00:06:57]} {[%emt 00:02:21]} Nb6 {[%clk 00:03:36]} {[%emt 00:00:25]} 29.
Qxb5 {[%clk 00:03:22]} {[%emt 00:03:45]} Qxb5 {[%clk 00:03:44]} {[%emt
00:00:02]} 30. Nxb5 {[%clk 00:03:30]} {[%emt 00:00:02]} Nc4 {[%clk 00:03:53]}
{[%emt 00:00:01]} 31. Nfd4 {[%clk 00:02:57]} {[%emt 00:00:42]} Bxe5 {[%clk
00:03:51]} {[%emt 00:00:12]} 32. Ra1 {[%clk 00:03:04]} {[%emt 00:00:04]} Bf6
{[%clk 00:02:46]} {[%emt 00:01:15]} 33. Re2 {[%clk 00:02:37]} {[%emt 00:00:37]}
e5 {[%clk 00:02:38]} {[%emt 00:00:18]} 34. Na7 {[%clk 00:02:13]} {[%emt
00:00:34]} exd4 {[%clk 00:02:37]} {[%emt 00:00:11]} 35. Nxc8 {[%clk 00:02:21]}
{[%emt 00:00:02]} Rxc8 {[%clk 00:01:51]} {[%emt 00:00:56]} 36. cxd4 {[%clk
00:02:27]} {[%emt 00:00:04]} Kf8 {[%clk 00:01:32]} {[%emt 00:00:28]} 37. Rc1
{[%clk 00:01:58]} {[%emt 00:00:38]} Re8 {[%clk 00:01:03]} {[%emt 00:00:39]} 38.
Rxe8+ {[%clk 00:01:16]} {[%emt 00:00:53]} Kxe8 {[%clk 00:01:12]} {[%emt
00:00:01]} 39. Rd1 {[%clk 00:00:52]} {[%emt 00:00:33]} Nxa3 {[%clk 00:00:14]}
{[%emt 00:01:08]} 40. Ra1 {[%clk 00:01:01]} Nb5 {[%clk 00:00:24]} {[%emt
00:00:01]} 41. Rxa4 {[%clk 00:01:07]} {[%emt 00:00:04]} Nxd4 {[%clk 00:00:31]}
{[%emt 00:00:02]} 42. Ra5 {[%clk 00:01:12]} {[%emt 00:00:06]} Ne2+ {[%clk
00:00:12]} {[%emt 00:00:30]} 43. Kf1 {[%clk 00:01:19]} {[%emt 00:00:02]} Nc3
{[%clk 00:00:21]} 44. Rc5 {[%clk 00:01:12]} {[%emt 00:00:18]} Kd7 {[%clk
00:00:23]} {[%emt 00:00:09]} 45. b5 {[%clk 00:01:11]} {[%emt 00:00:11]} Bd4
{[%clk 00:00:26]} {[%emt 00:00:06]} 46. Rc6 {[%clk 00:01:06]} {[%emt 00:00:14]}
f6 {[%clk 00:00:22]} {[%emt 00:00:14]} 47. Ra6 {[%clk 00:00:45]} {[%emt
00:00:31]} Nxb5 {[%clk 00:00:30]} {[%emt 00:00:02]} 48. f3 {[%clk 00:00:50]}
{[%emt 00:00:05]} Nc7 {[%clk 00:00:26]} {[%emt 00:00:13]} 49. Ra4 {[%clk
00:00:52]} {[%emt 00:00:08]} Bc5 {[%clk 00:00:28]} {[%emt 00:00:09]} 50. Ke2
{[%clk 00:00:56]} {[%emt 00:00:06]} Ne6 {[%clk 00:00:30]} {[%emt 00:00:09]} 51.
Ra6 {[%clk 00:00:56]} {[%emt 00:00:10]} h5 {[%clk 00:00:27]} {[%emt 00:00:13]}
52. g3 {[%clk 00:01:00]} {[%emt 00:00:06]} Nd4+ {[%clk 00:00:21]} {[%emt
00:00:16]} 53. Kd3 {[%clk 00:01:09]} {[%emt 00:00:01]} Nc6 {[%clk 00:00:19]}
{[%emt 00:00:12]} 54. Ra1 {[%clk 00:01:10]} {[%emt 00:00:09]} Bd6 {[%clk
00:00:18]} {[%emt 00:00:11]} 55. g4 {[%clk 00:01:12]} {[%emt 00:00:07]} h4
{[%clk 00:00:27]} {[%emt 00:00:01]} 56. Rd1 {[%clk 00:01:06]} {[%emt 00:00:16]}
Bc5 {[%clk 00:00:29]} {[%emt 00:00:08]} 57. Rc1 {[%clk 00:00:59]} {[%emt
00:00:17]} Kd6 {[%clk 00:00:38]} {[%emt 00:00:01]} 58. Ra1 {[%clk 00:01:04]}
{[%emt 00:00:05]} Bd4 {[%clk 00:00:25]} {[%emt 00:00:23]} 59. Ra6 {[%clk
00:00:56]} {[%emt 00:00:18]} Be5 {[%clk 00:00:33]} {[%emt 00:00:03]} 60. Ra4
{[%clk 00:00:49]} {[%emt 00:00:17]} Kc5 {[%clk 00:00:28]} {[%emt 00:00:15]} 61.
Ra8 {[%clk 00:00:52]} {[%emt 00:00:07]} Nb4+ {[%clk 00:00:29]} {[%emt
00:00:09]} 62. Kd2 {[%clk 00:00:48]} {[%emt 00:00:14]} Bf4+ {[%clk 00:00:28]}
{[%emt 00:00:11]} 63. Ke2 {[%clk 00:00:51]} {[%emt 00:00:07]} d4 {[%clk
00:00:19]} {[%emt 00:00:19]} 64. Rc8+ {[%clk 00:00:45]} {[%emt 00:00:15]} Kd5
{[%clk 00:00:21]} {[%emt 00:00:09]} 65. Rd8+ {[%clk 00:00:52]} {[%emt
00:00:02]} Kc4 {[%clk 00:00:26]} {[%emt 00:00:05]} 66. Rc8+ {[%clk 00:00:46]}
{[%emt 00:00:16]} Kb3 {[%clk 00:00:35]} {[%emt 00:00:01]} 67. Rc5 {[%clk
00:00:36]} {[%emt 00:00:20]} d3+ {[%clk 00:00:34]} {[%emt 00:00:12]} 68. Kd1
{[%clk 00:00:41]} {[%emt 00:00:05]} Na2 {[%clk 00:00:41]} {[%emt 00:00:03]} 69.
Rc8 {[%clk 00:00:15]} {[%emt 00:00:36]} Nc3+ {[%clk 00:00:43]} {[%emt
00:00:07]} 0-1